fUST/lending_fUST_20240802
["ID","MTS","AMOUNT","RATE_DAILY","PERIOD"]
[333828092,1722534646550,-500.0,0.00014246,2]
[333828093,1722534646561,-680.47,0.00014246,2]
[333828094,1722534646570,-500.0,0.00014246,2]
[333828095,1722534646580,-500.0,0.00014246,2]
[333828096,1722534646594,-1837.94,0.00014246,2]
[333828097,1722534646604,-500.0,0.00014246,2]
[333828098,1722534646614,-540.68,0.00014246,2]
[333828099,1722534646623,-500.0,0.00014246,2]
[333828100,1722534646635,-2260.18,0.00014246,2]
[333828101,1722534646646,-500.0,0.00014246,2]
[333828102,1722534646656,-500.0,0.00014246,2]
[333828103,1722534646665,-500.0,0.00014246,2]
[333828104,1722534646676,-500.0,0.00014246,2]
[333828105,1722534646686,-500.0,0.00014246,2]
[333828106,1722534646696,-500.0,0.00014246,2]
[333828107,1722534646706,-792.91,0.00014246,2]
[333828108,1722534646717,-1752.34,0.00014246,2]
[333828109,1722534646727,-500.0,0.00014246,2]
[333828110,1722534646736,-500.0,0.00014246,2]
[333828111,1722534646746,-500.0,0.00014246,2]
[333828112,1722534646756,-500.0,0.00014246,2]
[333828113,1722534646766,-500.0,0.00014246,2]
[333828114,1722534646775,-500.0,0.00014246,2]
[333828115,1722534646785,-500.0,0.00014246,2]
[333828116,1722534646799,-500.0,0.00014246,2]
[333828117,1722534646808,-655.91,0.00014246,2]
[333828118,1722534646818,-500.0,0.00014246,2]
[333828119,1722534646827,-500.0,0.00014246,2]
[333828120,1722534646837,-500.0,0.00014246,2]
[333828121,1722534646924,-806.66,0.00014246,2]
[333828122,1722534646934,-506.98,0.00014246,2]
[333828123,1722534646944,-534.27,0.00014246,2]
[333828124,1722534646953,-500.0,0.00014246,2]
[333828125,1722534646963,-500.0,0.00014246,2]
[333828126,1722534646972,-500.0,0.00014246,2]
[333828127,1722534646981,-1679.82,0.00014246,2]
[333828128,1722534646993,-504.05235574,0.00014246,2]
[333828129,1722534647002,-500.0,0.00014246,2]
[333828130,1722534647011,-293.60420587,0.00014246,2]
[333828131,1722534647020,-500.0,0.00014246,2]
[333828132,1722534647029,-500.0,0.00014246,2]
[333828133,1722534647041,-1155.73,0.00014246,2]
[333828134,1722534647050,-525.13,0.00014246,2]
[333828135,1722534647059,-641.96,0.00014246,2]
[333828136,1722534647069,-500.0,0.00014246,2]
[333828137,1722534647078,-500.0,0.00014246,2]
[333828138,1722534647088,-500.0,0.00014246,2]
[333828139,1722534647101,-500.0,0.00014246,2]
[333828140,1722534647110,-500.0,0.00014246,2]
[333828141,1722534647120,-500.0,0.00014246,2]
[333828142,1722534647130,-500.0,0.00014246,2]
[333828143,1722534647139,-500.0,0.00014246,2]
[333828144,1722534647148,-500.0,0.00014246,2]
[333828145,1722534647158,-500.0,0.00014246,2]
[333828146,1722534647168,-500.0,0.00014246,2]
[333828147,1722534647180,-500.0,0.00014246,2]
[333828148,1722534647189,-500.0,0.00014246,2]
[333828149,1722534647199,-500.0,0.00014246,2]
[333828150,1722534647209,-500.0,0.00014246,2]
[333828151,1722534647221,-500.0,0.00014246,2]
[333828152,1722534647232,-500.0,0.00014246,2]
[333828153,1722534647241,-500.0,0.00014246,2]
[333828154,1722534647250,-500.0,0.00014246,2]
[333828155,1722534647259,-500.0,0.00014246,2]
[333828156,1722534647269,-576.54,0.00014246,2]
[333828157,1722534647278,-500.0,0.00014246,2]
[333828158,1722534647290,-500.0,0.00014246,2]
[333828159,1722534647299,-500.0,0.00014246,2]
[333828160,1722534647308,-500.0,0.00014246,2]
[333828161,1722534647317,-500.0,0.00014246,2]
[333828162,1722534647327,-924.45,0.00014246,2]
[333828163,1722534647337,-509.51,0.00014246,2]
[333828164,1722534647346,-500.0,0.00014246,2]
[333828165,1722534647356,-1013.86,0.00014246,2]
[333828166,1722534647367,-561.52,0.00014246,2]
[333828167,1722534647376,-500.0,0.00014246,2]
[333828168,1722534647385,-500.0,0.00014246,2]
[333828169,1722534647395,-612.413788,0.00014247,2]
[333828171,1722534647404,-167.326179,0.00014247,2]
[333828172,1722534647413,-11756.9965129,0.0001451,2]
[333828173,1722534647422,-500.0,0.00014519,2]
[333828174,1722534647432,-500.0,0.00014519,2]
[333828176,1722534647441,-560.1,0.0001452,2]
[333828178,1722534647451,-500.0,0.0001452,2]
[333828180,1722534647461,-500.0,0.0001452,2]
[333828182,1722534647470,-500.0,0.0001452,2]
[333828183,1722534647479,-500.0,0.0001452,2]
[333828184,1722534647489,-500.0,0.0001452,2]
[333828185,1722534647498,-500.0,0.0001452,2]
[333828186,1722534647507,-500.0,0.0001452,2]
[333828187,1722534647516,-500.0,0.0001452,2]
[333828188,1722534647526,-500.0,0.0001452,2]
[333828189,1722534647535,-500.0,0.0001452,2]
[333828190,1722534647546,-500.0,0.0001452,2]
[333828191,1722534647556,-500.0,0.0001452,2]
[333828192,1722534647565,-500.0,0.0001452,2]
[333828193,1722534647575,-500.0,0.0001452,2]
[333828194,1722534647586,-500.0,0.0001452,2]
[333828195,1722534647596,-500.0,0.0001452,2]
[333828196,1722534647607,-500.0,0.0001452,2]
[333828197,1722534647617,-500.0,0.0001452,2]
[333828198,1722534647628,-500.0,0.0001452,2]
[333828199,1722534647638,-767.08,0.0001452,2]
[333828200,1722534647650,-515.0415024,0.0001452,2]
[333828201,1722534647660,-680.47,0.0001452,2]
[333828202,1722534647671,-500.0,0.0001452,2]
[333828203,1722534647682,-1837.94,0.0001452,2]
[333828205,1722534647692,-500.0,0.0001452,2]
[333828207,1722534647701,-540.68,0.0001452,2]
[333828208,1722534647711,-500.0,0.0001452,2]
[333828210,1722534647720,-2260.18,0.0001452,2]
[333828212,1722534647729,-500.0,0.0001452,2]
[333828214,1722534647740,-500.0,0.0001452,2]
[333828216,1722534647750,-500.0,0.0001452,2]
[333828218,1722534647760,-500.0,0.0001452,2]
[333828220,1722534647769,-792.91,0.0001452,2]
[333828222,1722534647783,-1752.34,0.0001452,2]
[333828225,1722534647801,-500.0,0.0001452,2]
[333828227,1722534647817,-500.0,0.0001452,2]
[333828229,1722534647828,-500.0,0.0001452,2]
[333828231,1722534647840,-500.0,0.0001452,2]
[333828233,1722534647855,-508.35,0.0001452,2]
[333828236,1722534647869,-500.0,0.0001452,2]
[333828238,1722534647884,-500.0,0.0001452,2]
[333828240,1722534647897,-655.91,0.0001452,2]
[333828242,1722534647912,-500.0,0.0001452,2]
[333828245,1722534647927,-500.0,0.0001452,2]
[333828247,1722534647940,-500.0,0.0001452,2]
[333828248,1722534647954,-806.66,0.0001452,2]
[333828250,1722534647967,-506.98,0.0001452,2]
[333828252,1722534647981,-534.27,0.0001452,2]
[333828253,1722534647996,-500.0,0.0001452,2]
[333828254,1722534648008,-500.0,0.0001452,2]
[333828255,1722534648018,-500.0,0.0001452,2]
[333828256,1722534648029,-1679.82,0.0001452,2]
[333828258,1722534648044,-555.93159638,0.0001452,2]
[333828260,1722534648057,-1155.73,0.0001452,2]
[333828263,1722534648069,-525.13,0.0001452,2]
[333828265,1722534648084,-641.96,0.0001452,2]
[333828267,1722534648099,-500.0,0.0001452,2]
[333828269,1722534648114,-500.0,0.0001452,2]
[333828270,1722534648129,-500.0,0.0001452,2]
[333828271,1722534648141,-362.03025892,0.0001452,2]
[333828272,1722534648152,-500.0,0.0001452,2]
[333828273,1722534648162,-500.0,0.0001452,2]
[333828274,1722534648173,-500.0,0.0001452,2]
[333828275,1722534648188,-500.0,0.0001452,2]
[333828276,1722534648203,-500.0,0.0001452,2]
[333828277,1722534648215,-500.0,0.0001452,2]
[333828278,1722534648226,-500.0,0.0001452,2]
[333828279,1722534648239,-150.67399796,0.0001452,2]
[333828280,1722534648251,-500.0,0.0001452,2]
[333828281,1722534648264,-500.0,0.0001452,2]
[333828282,1722534648277,-576.54,0.0001452,2]
[333828283,1722534648290,-500.0,0.0001452,2]
[333828284,1722534648301,-500.0,0.0001452,2]
[333828285,1722534648314,-500.0,0.0001452,2]
[333828286,1722534648325,-500.0,0.0001452,2]
[333828287,1722534648337,-443.44,0.0001452,2]
[333828288,1722534648349,-924.45,0.0001452,2]
[333828289,1722534648360,-509.51,0.0001452,2]
[333828290,1722534648371,-500.0,0.0001452,2]
[333828291,1722534648384,-1013.86,0.0001452,2]
[333828292,1722534648395,-561.52,0.0001452,2]
[333828293,1722534648407,-500.0,0.0001452,2]
[333828294,1722534648418,-500.0,0.0001452,2]
[333828295,1722534648430,-500.0,0.00014689,2]
[333828297,1722534648441,-190.54155228,0.0001469,2]
[333828299,1722534648452,-527.09552675,0.0001469,2]
[333828301,1722534648465,-30000.0,0.0001469,2]
[333828303,1722534648476,-150.112233,0.000147,2]
[333828305,1722534648487,-500.0,0.00014783,2]
[333828307,1722534648498,-500.0,0.00014783,2]
[333828309,1722534648510,-13666.04227071,0.00014784,5]
[333828310,1722534648521,-11756.9965129,0.00014784,2]
[333828311,1722534648532,-582.184,0.00014793,2]
[333828312,1722534648546,-500.0,0.00014793,2]
[333828313,1722534648558,-500.0,0.00014794,2]
[333828314,1722534648569,-500.0,0.00014794,2]
[333828315,1722534648581,-500.0,0.00014794,2]
[333828316,1722534648592,-500.0,0.00014794,2]
[333828317,1722534648603,-500.0,0.00014794,2]
[333828318,1722534648615,-500.0,0.00014794,2]
[333828319,1722534648627,-500.0,0.00014794,2]
[333828320,1722534648638,-500.0,0.00014794,2]
[333828321,1722534648650,-500.0,0.00014794,2]
[333828322,1722534648663,-500.0,0.00014794,2]
[333828323,1722534648674,-500.0,0.00014794,2]
[333828324,1722534648686,-500.0,0.00014794,2]
[333828325,1722534648697,-500.0,0.00014794,2]
[333828326,1722534648708,-571.03,0.00014794,2]
[333828327,1722534648720,-500.0,0.00014794,2]
[333828328,1722534648731,-500.0,0.00014794,2]
[333828329,1722534648740,-767.08,0.00014794,2]
[333828330,1722534648749,-680.47,0.00014794,2]
[333828331,1722534648759,-500.0,0.00014794,2]
[333828332,1722534648768,-1837.94,0.00014794,2]
[333828333,1722534648777,-500.0,0.00014794,2]
[333828335,1722534648786,-540.68,0.00014794,2]
[333828337,1722534648798,-500.0,0.00014794,2]
[333828339,1722534648808,-2260.18,0.00014794,2]
[333828340,1722534648817,-500.0,0.00014794,2]
[333828341,1722534648827,-500.0,0.00014794,2]
[333828343,1722534648837,-792.91,0.00014794,2]
[333828351,1722534648973,-1752.34,0.00014794,2]
[333828352,1722534648989,-500.0,0.00014794,2]
[333828353,1722534648999,-500.0,0.00014794,2]
[333828354,1722534649010,-500.0,0.00014794,2]
[333828355,1722534649020,-655.91,0.00014794,2]
[333828356,1722534649030,-500.0,0.00014794,2]
[333828357,1722534649040,-500.0,0.00014794,2]
[333828358,1722534649049,-806.66,0.00014794,2]
[333828359,1722534649058,-506.98,0.00014794,2]
[333828360,1722534649067,-534.27,0.00014794,2]
[333828361,1722534649077,-500.0,0.00014794,2]
[333828362,1722534649086,-500.0,0.00014794,2]
[333828363,1722534649096,-500.0,0.00014794,2]
[333828364,1722534649107,-1679.82,0.00014794,2]
[333828365,1722534649117,-1155.73,0.00014794,2]
[333828366,1722534649126,-525.13,0.00014794,2]
[333828367,1722534649137,-641.96,0.00014794,2]
[333828368,1722534649146,-500.0,0.00014794,2]
[333828369,1722534649156,-500.0,0.00014794,2]
[333828370,1722534649166,-356.6,0.00014794,2]
[333828371,1722534649175,-500.0,0.00014794,2]
[333828372,1722534649187,-500.0,0.00014794,2]
[333828373,1722534649196,-500.0,0.00014794,2]
[333828374,1722534649206,-500.0,0.00014794,2]
[333828375,1722534649216,-500.0,0.00014794,2]
[333828376,1722534649226,-500.0,0.00014794,2]
[333828377,1722534649235,-500.0,0.00014794,2]
[333828378,1722534649244,-576.54,0.00014794,2]
[333828379,1722534649254,-500.0,0.00014794,2]
[333828380,1722534649263,-500.0,0.00014794,2]
[333828381,1722534649273,-500.0,0.00014794,2]
[333828382,1722534649282,-276.86,0.00014794,2]
[333828383,1722534649294,-924.45,0.00014794,2]
[333828384,1722534649303,-509.51,0.00014794,2]
[333828385,1722534649313,-500.0,0.00014794,2]
[333828386,1722534649323,-1013.86,0.00014794,2]
[333828387,1722534649333,-561.52,0.00014794,2]
[333828388,1722534649343,-500.0,0.00014794,2]
[333828389,1722534649352,-500.0,0.00014794,2]
[333828390,1722534649361,-500.0,0.000149,7]
[333828391,1722534649370,-500.0,0.000149,7]
[333828392,1722534649379,-500.0,0.000149,7]
[333828393,1722534649389,-500.0,0.000149,7]
[333828394,1722534649399,-500.0,0.000149,7]
[333828395,1722534649408,-500.0,0.000149,7]
[333828396,1722534649418,-500.0,0.000149,7]
[333828397,1722534649427,-500.0,0.000149,7]
[333828398,1722534649436,-500.0,0.000149,7]
[333828399,1722534649447,-500.0,0.000149,7]
[333828400,1722534649457,-500.0,0.000149,7]
[333828401,1722534649466,-508.72527144,0.000149,7]
[333828402,1722534649475,-589.0583945,0.00014962,2]
[333828403,1722534649484,-6784.50981195,0.00015,2]
[333828404,1722534649493,-11756.9965129,0.00015058,2]
[333828405,1722534649503,-637.63,0.00015067,2]
[333828406,1722534649513,-500.0,0.00015068,2]
[333828407,1722534649523,-500.0,0.00015068,2]
[333828408,1722534649534,-500.0,0.00015068,2]
[333828409,1722534649547,-308.38675024,0.00015068,2]
[333828410,1722534649559,-500.0,0.00015068,2]
[333828411,1722534649576,-500.0,0.00015068,2]
[333828412,1722534649586,-500.0,0.00015068,2]
[333828413,1722534649595,-500.0,0.00015068,2]
[333828414,1722534649605,-500.0,0.00015068,2]
[333828415,1722534649614,-500.0,0.00015068,2]
[333828416,1722534649624,-500.0,0.00015068,2]
[333828417,1722534649634,-500.0,0.00015068,2]
[333828418,1722534649644,-767.08,0.00015068,2]
[333828419,1722534649654,-680.47,0.00015068,2]
[333828420,1722534649663,-500.0,0.00015068,2]
[333828421,1722534649673,-1837.94,0.00015068,2]
[333828422,1722534649683,-500.0,0.00015068,2]
[333828423,1722534649692,-540.68,0.00015068,2]
[333828424,1722534649701,-500.0,0.00015068,2]
[333828425,1722534649711,-2260.18,0.00015068,2]
[333828426,1722534649721,-500.0,0.00015068,2]
[333828427,1722534649730,-500.0,0.00015068,2]
[333828428,1722534649739,-792.91,0.00015068,2]
[333828429,1722534649749,-1752.34,0.00015068,2]
[333828430,1722534649759,-500.0,0.00015068,2]
[333828431,1722534649768,-500.0,0.00015068,2]
[333828432,1722534649778,-500.0,0.00015068,2]
[333828433,1722534649788,-655.91,0.00015068,2]
[333828434,1722534649800,-500.0,0.00015068,2]
[333828435,1722534649810,-500.0,0.00015068,2]
[333828436,1722534649819,-806.66,0.00015068,2]
[333828437,1722534649828,-506.98,0.00015068,2]
[333828438,1722534649838,-534.27,0.00015068,2]
[333828439,1722534649847,-500.0,0.00015068,2]
[333828440,1722534649858,-500.0,0.00015068,2]
[333828441,1722534649867,-500.0,0.00015068,2]
[333828442,1722534649877,-1679.82,0.00015068,2]
[333828443,1722534649887,-1155.73,0.00015068,2]
[333828444,1722534649896,-525.13,0.00015068,2]
[333828445,1722534649905,-641.96,0.00015068,2]
[333828446,1722534649915,-500.0,0.00015068,2]
[333828447,1722534649924,-500.0,0.00015068,2]
[333828448,1722534649933,-500.0,0.00015068,2]
[333828449,1722534649945,-500.0,0.00015068,2]
[333828450,1722534649954,-500.0,0.00015068,2]
[333828451,1722534649964,-500.0,0.00015068,2]
[333828452,1722534649973,-500.0,0.00015068,2]
[333828453,1722534649984,-500.0,0.00015068,2]
[333828454,1722534649996,-500.0,0.00015068,2]
[333828455,1722534650006,-576.54,0.00015068,2]
[333828456,1722534650016,-151.0,0.00015068,2]
[333828457,1722534650027,-500.0,0.00015068,2]
[333828458,1722534650037,-500.0,0.00015068,2]
[333828459,1722534650050,-151.0,0.00015068,2]
[333828460,1722534650059,-500.0,0.00015068,2]
[333828461,1722534650068,-924.45,0.00015068,2]
[333828462,1722534650078,-509.51,0.00015068,2]
[333828463,1722534650087,-151.0,0.00015068,2]
[333828464,1722534650100,-500.0,0.00015068,2]
[333828465,1722534650109,-1013.86,0.00015068,2]
[333828466,1722534650119,-561.52,0.00015068,2]
[333828467,1722534650128,-500.0,0.00015068,2]
[333828468,1722534650138,-500.0,0.00015068,2]
[333828469,1722534650147,-2214.55178671,0.00015332,2]
[333828470,1722534650410,569.98,0.00010959,2]
[333828471,1722534658456,474.99,0.00010959,2]
[333828472,1722534668994,395.82,0.00010959,2]
[333828473,1722534679537,329.85,0.00010959,2]
[333828474,1722534690097,274.88,0.00010959,2]
[333828475,1722534694405,161.7352196,0.00010959,2]
[333828476,1722534700629,229.06,0.00010959,2]
[333828477,1722534711185,190.89,0.00010959,2]
[333828478,1722534721836,159.07,0.00010959,2]
[333828485,1722534732584,795.38,0.00010959,2]
[333828486,1722534734798,404.58378299,0.00010959,2]
[333828497,1722534842475,236.21706747,9.999e-05,2]
[333828517,1722535076363,196.41966399,9.999e-05,2]
[333828523,1722535261542,180.40131411,9.999e-05,2]
[333828537,1722535537096,412.86050164,0.0001,2]
[333828538,1722535539112,154.72922386,9.999e-05,2]
[333828539,1722535543058,155.50527536,9.999e-05,2]
[333828540,1722535554340,188.18564016,9.999e-05,2]
[333828541,1722535559150,-166.614318,0.00012006,2]
[333828542,1722535559172,-300.0,0.00012228,2]
[333828543,1722535559192,-300.0,0.00012228,2]
[333828544,1722535559214,-1028.51203889,0.00012229,2]
[333828546,1722535586516,1000.0,0.00027,120]
[333828547,1722535596802,5584.0,0.00027,120]
[333828548,1722535630112,-300.0,0.00012046,2]
[333828549,1722535630134,-300.0,0.00012046,2]
[333828550,1722535630155,-17.62390255,0.00012047,2]
[333828551,1722535633161,-2277.21481079,0.00012047,2]
[333828552,1722535642154,-5570.7564649,0.00012047,2]
[333828553,1722535644105,-904.50023989,0.00012047,2]
[333828554,1722535647120,-220.52957738,0.00012047,2]
[333828555,1722535651114,-574.17073275,0.00012047,2]
[333828556,1722535745216,-1277.89780692,0.00012047,2]
[333828557,1722535751088,-598.50142152,0.00012047,2]
[333828558,1722535751110,-4908.231854,0.00012047,2]
[333828559,1722535754102,-200.614772,0.00012482,2]
[333828560,1722535754126,-200.614772,0.00012516,2]
[333828561,1722535754275,-200.614772,0.0001255,2]
[333828562,1722535758220,244.78359005,9.999e-05,2]
[333828563,1722535761109,-200.614772,0.00012585,2]
[333828564,1722535761132,-200.614772,0.00012619,2]
[333828565,1722535761154,-200.614772,0.00012653,2]
[333828566,1722535761175,-200.614772,0.00012687,2]
[333828567,1722535761197,-200.614772,0.00012722,2]
[333828568,1722535761219,-200.614772,0.00012756,2]
[333828569,1722535761240,-200.614772,0.0001279,2]
[333828570,1722535761262,-200.614772,0.00012824,2]
[333828571,1722535761283,-200.614772,0.00012859,2]
[333828572,1722535761312,-200.614772,0.00012893,2]
[333828573,1722535761333,-200.614772,0.00012927,2]
[333828574,1722535761354,-300.0,0.0001296,2]
[333828575,1722535761374,-300.0,0.0001296,2]
[333828576,1722535761395,-200.614772,0.00012961,2]
[333828577,1722535761417,-168.035028,0.00012986,2]
[333828578,1722535761438,-200.614772,0.00012996,2]
[333828579,1722535761462,-200.614772,0.0001303,2]
[333828580,1722535761487,-200.614772,0.00013064,2]
[333828581,1722535761510,-200.614772,0.00013098,2]
[333828582,1722535761533,-200.614772,0.00013133,2]
[333828584,1722535826689,166.614318,0.00012455,2]
[333828601,1722535832681,-253.0615718,0.000134,2]
[333828603,1722535832692,-191.43645484,0.00013598,2]
[333828605,1722535832702,-195.73979699,0.00013598,2]
[333828876,1722535838355,-3123.56151502,0.00013598,2]
[333828877,1722535838368,-527.09552675,0.000136,2]
[333828878,1722535838379,-17765.87177805,0.0001368,2]
[333828883,1722535840287,-45885.36193156,0.0001368,2]
[333828884,1722535840301,-1175.69965129,0.00013688,2]
[333828885,1722535840315,-300.0,0.00013696,2]
[333828886,1722535840326,-500.0,0.00013697,2]
[333828887,1722535840338,-500.0,0.00013697,2]
[333828888,1722535840348,-500.0,0.00013698,2]
[333828889,1722535840360,-500.0,0.00013698,2]
[333828890,1722535840371,-500.0,0.00013698,2]
[333828891,1722535840384,-519.68227313,0.00013698,2]
[333828892,1722535840398,-500.0,0.00013698,2]
[333828893,1722535840410,-536.81620935,0.00013698,2]
[333828894,1722535840423,-500.0,0.00013698,2]
[333828895,1722535840434,-500.0,0.00013698,2]
[333828896,1722535840445,-500.0,0.00013698,2]
[333828897,1722535840459,-500.0,0.00013698,2]
[333828899,1722535840471,-500.0,0.00013698,2]
[333828901,1722535840485,-500.0,0.00013698,2]
[333828904,1722535840502,-500.0,0.00013698,2]
[333828906,1722535840514,-500.0,0.00013698,2]
[333828908,1722535840526,-500.0,0.00013698,2]
[333828910,1722535840537,-500.0,0.00013698,2]
[333828912,1722535840548,-511.392708,0.00013698,2]
[333828914,1722535840560,-500.0,0.00013698,2]
[333828916,1722535840576,-500.0,0.00013698,2]
[333828918,1722535840589,-500.0,0.00013698,2]
[333828920,1722535840610,-500.0,0.00013698,2]
[333828922,1722535840629,-500.0,0.00013698,2]
[333828923,1722535840642,-500.0,0.00013698,2]
[333828924,1722535840654,-500.0,0.00013698,2]
[333828925,1722535840665,-500.0,0.00013698,2]
[333828926,1722535840676,-511.62053631,0.00013698,2]
[333828927,1722535840687,-500.0,0.00013698,2]
[333828928,1722535840699,-500.0,0.00013698,2]
[333828929,1722535840711,-500.0,0.00013698,2]
[333828930,1722535840722,-500.0,0.00013698,2]
[333828931,1722535840733,-264.79464039,0.00013698,2]
[333828932,1722535840744,-500.0,0.00013698,2]
[333828933,1722535840755,-500.0,0.00013698,2]
[333828935,1722535840769,-500.0,0.00013698,2]
[333828937,1722535840781,-500.0,0.00013698,2]
[333828939,1722535840793,-500.0,0.00013698,2]
[333828941,1722535840805,-500.0,0.00013698,2]
[333828942,1722535840817,-500.0,0.00013698,2]
[333828943,1722535840828,-500.0,0.00013698,2]
[333828944,1722535840840,-500.0,0.00013698,2]
[333828945,1722535840852,-500.0,0.00013698,2]
[333828946,1722535840863,-500.0,0.00013698,2]
[333828947,1722535840875,-500.0,0.00013698,2]
[333828948,1722535840887,-500.0,0.00013698,2]
[333828949,1722535840898,-500.0,0.00013698,2]
[333828950,1722535840909,-500.0,0.00013698,2]
[333828951,1722535840921,-500.0,0.00013698,2]
[333828952,1722535840932,-500.0,0.00013698,2]
[333828953,1722535840944,-500.0,0.00013698,2]
[333828954,1722535840955,-500.0,0.00013698,2]
[333828955,1722535840967,-500.0,0.00013698,2]
[333828956,1722535840978,-500.0,0.00013698,2]
[333828957,1722535840990,-500.0,0.00013698,2]
[333828959,1722535841002,-500.0,0.00013698,2]
[333828961,1722535841016,-500.0,0.00013698,2]
[333828963,1722535841028,-500.0,0.00013698,2]
[333828964,1722535841039,-500.0,0.00013698,2]
[333828965,1722535841053,-500.0,0.00013698,2]
[333828966,1722535841065,-500.0,0.00013698,2]
[333828967,1722535841078,-500.0,0.00013698,2]
[333828968,1722535841090,-500.0,0.00013698,2]
[333828969,1722535841103,-500.0,0.00013698,2]
[333828970,1722535841120,-500.0,0.00013698,2]
[333828971,1722535841143,-325.29883027,0.00013698,2]
[333828972,1722535841156,-500.0,0.00013698,2]
[333828974,1722535841168,-500.0,0.00013698,2]
[333828990,1722535841294,-500.0,0.00013698,2]
[333828993,1722535841353,-500.0,0.00013698,2]
[333828995,1722535841363,-518.48045039,0.00013698,2]
[333828997,1722535841373,-500.0,0.00013698,2]
[333828999,1722535841383,-500.0,0.00013698,2]
[333829001,1722535841393,-514.98561852,0.00013698,2]
[333829003,1722535841403,-527.81090515,0.00013698,2]
[333829005,1722535841412,-500.0,0.00013698,2]
[333829007,1722535841422,-500.0,0.00013698,2]
[333829009,1722535841432,-500.0,0.00013698,2]
[333829011,1722535841442,-500.0,0.00013698,2]
[333829013,1722535841452,-500.0,0.00013698,2]
[333829015,1722535841462,-500.0,0.00013698,2]
[333829017,1722535841471,-500.0,0.00013698,2]
[333829019,1722535841482,-500.0,0.00013698,2]
[333829021,1722535841496,-500.0,0.00013698,2]
[333829023,1722535841506,-500.0,0.00013698,2]
[333829025,1722535841516,-500.0,0.00013698,2]
[333829027,1722535841532,-500.0,0.00013698,2]
[333829029,1722535841542,-501.91980366,0.00013698,2]
[333829031,1722535841552,-500.0,0.00013698,2]
[333829033,1722535841564,-500.0,0.00013698,2]
[333829035,1722535841575,-500.0,0.00013698,2]
[333829037,1722535841586,-500.0,0.00013698,2]
[333829039,1722535841596,-503.11388745,0.00013698,2]
[333829041,1722535841607,-500.0,0.00013698,2]
[333829042,1722535841625,-500.0,0.00013698,2]
[333829043,1722535841642,-500.0,0.00013698,2]
[333829044,1722535841652,-1025.63,0.00013698,2]
[333829045,1722535841663,-1387.27,0.00013698,2]
[333829046,1722535841673,-500.0,0.00013698,2]
[333829047,1722535841684,-500.0,0.00013698,2]
[333829048,1722535841693,-500.0,0.00013698,2]
[333829049,1722535841704,-500.0,0.00013698,2]
[333829050,1722535841715,-500.0,0.00013698,2]
[333829051,1722535841725,-500.0,0.00013698,2]
[333829052,1722535841736,-664.77,0.00013698,2]
[333829053,1722535841746,-500.0,0.00013698,2]
[333829054,1722535841757,-415.00256177,0.00013698,2]
[333829055,1722535841768,-500.0,0.00013698,2]